[Event "Live Chess"]
[Site "Chess.com"]
[Date "2023.05.21"]
[Round "-"]
[White "educatedlad"]
[Black "grillage"]
[Result "1-0"]
[WhiteElo "1635"]
[BlackElo "1773"]
[TimeControl "300"]
[EndTime "7:54:27 PDT"]
[Termination "educatedlad won by resignation"]

1. e4 {[%clk 0:04:59.4]} 1... d5 {[%clk 0:04:57.8]} 2. exd5 {[%clk 0:04:57.3]}
2... Qxd5 {[%clk 0:04:56.3]} 3. Nc3 {[%clk 0:04:56.9]} 3... Qd8 {[%clk
0:04:54.9]} 4. d4 {[%clk 0:04:55.5]} 4... Nf6 {[%clk 0:04:53.3]} 5. Nf3 {[%clk
0:04:54.7]} 5... Bg4 {[%clk 0:04:52.4]} 6. h3 {[%clk 0:04:51.4]} 6... Bxf3
{[%clk 0:04:51.1]} 7. Qxf3 {[%clk 0:04:50.1]} 7... c6 {[%clk 0:04:50.6]} 8. Be3
{[%clk 0:04:47.4]} 8... e6 {[%clk 0:04:49.3]} 9. O-O-O {[%clk 0:04:46.9]} 9...
Bb4 {[%clk 0:04:47.8]} 10. Ne2 {[%clk 0:04:44.4]} 10... Qd5 {[%clk 0:04:43.4]}
11. c4 {[%clk 0:04:37.3]} 11... Qxf3 {[%clk 0:04:40.9]} 12. gxf3 {[%clk
0:04:35.7]} 12... Nbd7 {[%clk 0:04:32]} 13. a3 {[%clk 0:04:34.2]} 13... Be7
{[%clk 0:04:30.4]} 14. Nc3 {[%clk 0:04:32.9]} 14... O-O-O {[%clk 0:04:28.1]} 15.
Bg2 {[%clk 0:04:28.8]} 15... c5 {[%clk 0:03:57.9]} 16. d5 {[%clk 0:04:23.7]}
16... exd5 {[%clk 0:03:54.9]} 17. cxd5 {[%clk 0:04:21.5]} 17... Ne5 {[%clk
0:03:48.9]} 18. f4 {[%clk 0:04:14.2]} 18... Nc4 {[%clk 0:03:45.4]} 19. Rhe1
{[%clk 0:04:01.3]} 19... Bd6 {[%clk 0:03:41.3]} 20. Nb5 {[%clk 0:03:49.1]} 20...
a6 {[%clk 0:03:34.7]} 21. Nxd6+ {[%clk 0:03:47.1]} 21... Nxd6 {[%clk 0:03:33.4]}
22. Bxc5 {[%clk 0:03:45.9]} 22... Kb8 {[%clk 0:03:30.8]} 23. Kb1 {[%clk
0:03:37.4]} 23... Nh5 {[%clk 0:03:19.3]} 24. Be3 {[%clk 0:03:34.1]} 24... f5
{[%clk 0:03:11.6]} 25. Rc1 {[%clk 0:03:32.4]} 25... Nf6 {[%clk 0:03:08]} 26. Bb6
{[%clk 0:03:30.1]} 26... Rc8 {[%clk 0:03:03.6]} 27. Rxc8+ {[%clk 0:03:28.4]}
27... Rxc8 {[%clk 0:03:02.4]} 28. Rc1 {[%clk 0:03:26.4]} 28... Re8 {[%clk
0:02:53.9]} 29. Bc7+ {[%clk 0:03:24.4]} 29... Ka7 {[%clk 0:02:48.7]} 30. Bxd6
{[%clk 0:03:23.5]} 30... Re2 {[%clk 0:02:47.5]} 31. Bf3 {[%clk 0:03:15.3]} 31...
Rd2 {[%clk 0:02:45]} 32. h4 {[%clk 0:03:08.2]} 32... Nxd5 {[%clk 0:02:43.5]} 33.
Bxd5 {[%clk 0:03:00]} 33... Rxd5 {[%clk 0:02:42.1]} 34. Be5 {[%clk 0:02:58.8]}
34... g6 {[%clk 0:02:37.3]} 35. Rc7 {[%clk 0:02:55.8]} 35... Kb6 {[%clk
0:02:30.3]} 36. Rxh7 {[%clk 0:02:53.9]} 36... Rd1+ {[%clk 0:02:28.5]} 37. Kc2
{[%clk 0:02:52.5]} 37... Rf1 {[%clk 0:02:27.5]} 38. Rg7 {[%clk 0:02:49.4]} 38...
Kc6 {[%clk 0:02:25.3]} 39. Rxg6+ {[%clk 0:02:47.6]} 39... Kd5 {[%clk 0:02:23.7]}
40. Rd6+ {[%clk 0:02:44.6]} 40... Ke4 {[%clk 0:02:22.8]} 41. Rd2 {[%clk
0:02:42.4]} 41... Rh1 {[%clk 0:02:21.1]} 42. f3+ {[%clk 0:02:38.4]} 42... Kxf3
{[%clk 0:02:19.7]} 43. Rd3+ {[%clk 0:02:35.3]} 43... Ke4 {[%clk 0:02:18.6]} 44.
Rd4+ {[%clk 0:02:33.7]} 44... Kf3 {[%clk 0:02:17.8]} 45. Bf6 {[%clk 0:02:27.2]}
45... Re1 {[%clk 0:02:12.4]} 46. Rd1 {[%clk 0:02:25]} 46... Re2+ {[%clk
0:02:10.7]} 47. Rd2 {[%clk 0:02:24.1]} 47... Re6 {[%clk 0:02:08.6]} 48. Be5
{[%clk 0:02:20.5]} 48... Rh6 {[%clk 0:02:06.5]} 49. Rh2 {[%clk 0:02:16.3]} 49...
Kg3 {[%clk 0:02:05.5]} 50. Rh1 {[%clk 0:02:14.8]} 50... Kg2 {[%clk 0:02:04.8]}
51. Rd1 {[%clk 0:02:08.1]} 51... Rxh4 {[%clk 0:02:03.8]} 52. Rd2+ {[%clk
0:02:07]} 52... Kf3 {[%clk 0:02:02.2]} 53. Rd7 {[%clk 0:02:04.6]} 53... Rh2+
{[%clk 0:01:55.8]} 54. Kb3 {[%clk 0:02:03.4]} 54... Re2 {[%clk 0:01:50]} 55.
Rxb7 {[%clk 0:02:01.6]} 55... Re3+ {[%clk 0:01:49]} 56. Ka2 {[%clk 0:01:59.9]}
56... Re4 {[%clk 0:01:36.4]} 57. Rb3+ {[%clk 0:01:58]} 57... Kg4 {[%clk
0:01:34.8]} 58. Rb6 {[%clk 0:01:55.9]} 58... Rxf4 {[%clk 0:01:27.2]} 59. Bxf4
{[%clk 0:01:54.6]} 59... Kxf4 {[%clk 0:01:26.9]} 60. Rxa6 {[%clk 0:01:53.8]}
60... Ke3 {[%clk 0:01:26.6]} 61. Rf6 {[%clk 0:01:53.1]} 61... f4 {[%clk
0:01:25.8]} 62. Kb3 {[%clk 0:01:52.1]} 62... f3 {[%clk 0:01:25.3]} 63. Kc4
{[%clk 0:01:51]} 63... f2 {[%clk 0:01:24.9]} 64. Rxf2 {[%clk 0:01:49.7]} 64...
Kxf2 {[%clk 0:01:24.1]} 65. b4 {[%clk 0:01:49.6]} 1-0

[Event "Live Chess"]
[Site "Chess.com"]
[Date "2023.05.21"]
[Round "-"]
[White "MartynColebrook"]
[Black "McSlash1"]
[Result "0-1"]
[WhiteElo "1320"]
[BlackElo "2008"]
[TimeControl "300"]
[EndTime "7:54:35 PDT"]
[Termination "McSlash1 won by resignation"]

1. e4 {[%clk 0:04:58.4]} 1... c5 {[%clk 0:04:59.6]} 2. Nf3 {[%clk 0:04:55.4]}
2... d6 {[%clk 0:04:58.8]} 3. d4 {[%clk 0:04:54.2]} 3... cxd4 {[%clk 0:04:58.7]}
4. Nxd4 {[%clk 0:04:52.6]} 4... Nf6 {[%clk 0:04:58.6]} 5. Nc3 {[%clk 0:04:49.8]}
5... g6 {[%clk 0:04:58.1]} 6. Be3 {[%clk 0:04:47.1]} 6... Bg7 {[%clk 0:04:57.5]}
7. Bc4 {[%clk 0:04:44.9]} 7... O-O {[%clk 0:04:56.8]} 8. f4 {[%clk 0:04:42.4]}
8... Ng4 {[%clk 0:04:55.8]} 9. Bg1 {[%clk 0:04:36.4]} 9... Nc6 {[%clk
0:04:53.9]} 10. Nxc6 {[%clk 0:04:32.9]} 10... bxc6 {[%clk 0:04:53.8]} 11. h3
{[%clk 0:04:30.9]} 11... Nf6 {[%clk 0:04:52.1]} 12. e5 {[%clk 0:04:28.3]} 12...
Ne8 {[%clk 0:04:48.1]} 13. Bd4 {[%clk 0:04:16.8]} 13... c5 {[%clk 0:04:46.4]}
14. Bd5 {[%clk 0:03:57]} 14... cxd4 {[%clk 0:04:43.6]} 15. Bxa8 {[%clk
0:03:51.3]} 15... dxc3 {[%clk 0:04:43.5]} 16. bxc3 {[%clk 0:03:46.8]} 16... Bf5
{[%clk 0:04:40.7]} 17. Bf3 {[%clk 0:03:35.3]} 17... Qc7 {[%clk 0:04:38]} 18. O-O
{[%clk 0:03:28.2]} 18... dxe5 {[%clk 0:04:35.4]} 19. fxe5 {[%clk 0:03:26.2]}
19... Bxe5 {[%clk 0:04:35.3]} 20. c4 {[%clk 0:03:23.2]} 20... Bxa1 {[%clk
0:04:33.7]} 21. Qxa1 {[%clk 0:03:16.1]} 21... Qxc4 {[%clk 0:04:32]} 0-1

[Event "Live Chess"]
[Site "Chess.com"]
[Date "2023.05.21"]
[Round "-"]
[White "Crowded_House"]
[Black "CheckThis4"]
[Result "0-1"]
[WhiteElo "1608"]
[BlackElo "2529"]
[TimeControl "300"]
[EndTime "7:54:37 PDT"]
[Termination "CheckThis4 won by resignation"]

1. d4 {[%clk 0:04:59.5]} 1... Nf6 {[%clk 0:04:58.6]} 2. Bg5 {[%clk 0:04:57.9]}
2... c5 {[%clk 0:04:56.4]} 3. c3 {[%clk 0:04:54.9]} 3... cxd4 {[%clk 0:04:46.9]}
4. Qxd4 {[%clk 0:04:53.5]} 4... Nc6 {[%clk 0:04:45.1]} 5. Qd1 {[%clk 0:04:46.5]}
5... Ne4 {[%clk 0:04:38.7]} 6. Bh4 {[%clk 0:04:40.5]} 6... g5 {[%clk 0:04:33]}
7. Bg3 {[%clk 0:04:38.1]} 7... h5 {[%clk 0:04:30.5]} 8. h3 {[%clk 0:04:28.5]}
8... Nxg3 {[%clk 0:04:28]} 9. fxg3 {[%clk 0:04:27]} 9... Qc7 {[%clk 0:04:21.7]}
10. Qd3 {[%clk 0:04:22.5]} 10... Ne5 {[%clk 0:04:17.6]} 11. Qe3 {[%clk
0:04:08.2]} 11... Nc4 {[%clk 0:04:16.6]} 12. Qxg5 {[%clk 0:04:00]} 12... Bh6
{[%clk 0:04:12.5]} 13. Qh4 {[%clk 0:03:44.6]} 13... Nxb2 {[%clk 0:04:07.8]} 14.
Nf3 {[%clk 0:03:29.9]} 14... b6 {[%clk 0:04:04.3]} 15. Nd4 {[%clk 0:03:09.4]}
15... Bb7 {[%clk 0:03:58]} 16. e4 {[%clk 0:03:06.2]} 16... Qe5 {[%clk
0:03:42.6]} 17. Be2 {[%clk 0:02:45.5]} 17... Bg5 {[%clk 0:03:31.6]} 18. Nf3
{[%clk 0:02:40.4]} 18... Bxh4 {[%clk 0:03:29.7]} 19. Nxe5 {[%clk 0:02:38.5]}
19... Bxg3+ {[%clk 0:03:28.9]} 20. Kd2 {[%clk 0:02:26.3]} 20... Bxe5 {[%clk
0:03:28.8]} 21. Bf3 {[%clk 0:02:17.3]} 21... Nc4+ {[%clk 0:03:26.5]} 22. Kd3
{[%clk 0:02:11.3]} 22... Ba6 {[%clk 0:03:25.7]} 23. Kc2 {[%clk 0:02:09]} 23...
Rc8 {[%clk 0:03:23.6]} 24. Nd2 {[%clk 0:02:06.5]} 24... Nxd2 {[%clk 0:03:21.3]}
25. Kxd2 {[%clk 0:02:05.7]} 25... Bxc3+ {[%clk 0:03:20.5]} 26. Ke3 {[%clk
0:02:03.4]} 26... Bxa1 {[%clk 0:03:20.4]} 27. Rxa1 {[%clk 0:02:00.2]} 27... Rc3+
{[%clk 0:03:18.9]} 0-1

[Event "Live Chess"]
[Site "Chess.com"]
[Date "2023.05.21"]
[Round "-"]
[White "Long1968"]
[Black "Man-Del-Brot"]
[Result "0-1"]
[WhiteElo "945"]
[BlackElo "1073"]
[TimeControl "300"]
[EndTime "7:54:44 PDT"]
[Termination "Man-Del-Brot won on time"]

1. e4 {[%clk 0:04:55.3]} 1... e5 {[%clk 0:04:58]} 2. f4 {[%clk 0:04:52.8]} 2...
d6 {[%clk 0:04:55.2]} 3. Nf3 {[%clk 0:04:46.7]} 3... Bg4 {[%clk 0:04:53.6]} 4.
Bc4 {[%clk 0:04:38.7]} 4... Nc6 {[%clk 0:04:46.7]} 5. c3 {[%clk 0:04:16.7]} 5...
Be7 {[%clk 0:04:25]} 6. O-O {[%clk 0:04:07.1]} 6... Nf6 {[%clk 0:04:13]} 7. d4
{[%clk 0:03:57.5]} 7... exd4 {[%clk 0:03:46.1]} 8. cxd4 {[%clk 0:03:29]} 8...
O-O {[%clk 0:03:42.4]} 9. e5 {[%clk 0:02:31.4]} 9... dxe5 {[%clk 0:03:32.3]} 10.
fxe5 {[%clk 0:01:20.6]} 10... Nd5 {[%clk 0:02:45.5]} 11. h3 {[%clk 0:00:44.2]}
11... Be6 {[%clk 0:01:55.2]} 12. Qc2 {[%clk 0:00:09.2]} 12... Ncb4 {[%clk
0:01:38.6]} 0-1

[Event "Live Chess"]
[Site "Chess.com"]
[Date "2023.05.21"]
[Round "-"]
[White "Leonid_Starozhilov"]
[Black "onemoretime1975"]
[Result "1-0"]
[WhiteElo "2638"]
[BlackElo "1849"]
[TimeControl "300"]
[EndTime "7:54:48 PDT"]
[Termination "Leonid_Starozhilov won by resignation"]

1. e4 {[%clk 0:04:58.1]} 1... e6 {[%clk 0:04:58.6]} 2. d4 {[%clk 0:04:56.8]}
2... d5 {[%clk 0:04:57.2]} 3. Nc3 {[%clk 0:04:55.2]} 3... Nf6 {[%clk 0:04:55.1]}
4. e5 {[%clk 0:04:53.8]} 4... Nfd7 {[%clk 0:04:53.5]} 5. Nce2 {[%clk 0:04:50.8]}
5... c5 {[%clk 0:04:50.7]} 6. c3 {[%clk 0:04:50.2]} 6... Nc6 {[%clk 0:04:49]} 7.
a3 {[%clk 0:04:48.8]} 7... b6 {[%clk 0:04:41.4]} 8. f4 {[%clk 0:04:47.3]} 8...
Ba6 {[%clk 0:04:38.5]} 9. Nf3 {[%clk 0:04:45.9]} 9... Be7 {[%clk 0:04:28.8]} 10.
Ng3 {[%clk 0:04:41.8]} 10... Bxf1 {[%clk 0:04:26.4]} 11. Kxf1 {[%clk 0:04:39.3]}
11... g6 {[%clk 0:04:25.1]} 12. Kf2 {[%clk 0:04:38.1]} 12... h5 {[%clk
0:04:18.3]} 13. Be3 {[%clk 0:04:35.1]} 13... Rc8 {[%clk 0:04:08.9]} 14. Ne2
{[%clk 0:04:30.6]} 14... Bh4+ {[%clk 0:03:58.9]} 15. g3 {[%clk 0:04:27.7]} 15...
Be7 {[%clk 0:03:56.6]} 16. b4 {[%clk 0:04:26.8]} 16... cxd4 {[%clk 0:03:50.2]}
17. cxd4 {[%clk 0:04:24.3]} 17... O-O {[%clk 0:03:36.7]} 18. h3 {[%clk
0:04:20.9]} 18... Kg7 {[%clk 0:03:34.4]} 19. g4 {[%clk 0:04:17.5]} 19... hxg4
{[%clk 0:03:33.2]} 20. hxg4 {[%clk 0:04:17.4]} 20... Rh8 {[%clk 0:03:30.8]} 21.
Qd3 {[%clk 0:04:16.5]} 21... Qc7 {[%clk 0:03:13.5]} 22. f5 {[%clk 0:04:12.9]}
22... gxf5 {[%clk 0:02:55.9]} 23. gxf5 {[%clk 0:04:11.1]} 23... Rxh1 {[%clk
0:02:54]} 24. f6+ {[%clk 0:04:05.2]} 24... Nxf6 {[%clk 0:02:50.3]} 25. exf6+
{[%clk 0:04:03.6]} 25... Bxf6 {[%clk 0:02:43.1]} 26. Rxh1 {[%clk 0:04:03.5]}
26... Rh8 {[%clk 0:02:24.3]} 27. Rxh8 {[%clk 0:03:58.2]} 27... Kxh8 {[%clk
0:02:22.9]} 28. Bf4 {[%clk 0:03:55.1]} 28... Qe7 {[%clk 0:02:12.4]} 29. Ng3
{[%clk 0:03:51.5]} 29... Bh4 {[%clk 0:01:59.5]} 30. Kg2 {[%clk 0:03:46.3]} 30...
f5 {[%clk 0:01:48]} 31. Qc3 {[%clk 0:03:40]} 31... Nd8 {[%clk 0:01:32.3]} 32.
Be5+ {[%clk 0:03:35.5]} 32... Kh7 {[%clk 0:01:21.9]} 33. Qc8 {[%clk 0:03:32.3]}
33... Nf7 {[%clk 0:01:14.9]} 34. Nxh4 {[%clk 0:03:28]} 34... Qxh4 {[%clk
0:01:09.6]} 35. Qxe6 {[%clk 0:03:25.5]} 35... Qh3+ {[%clk 0:00:44.2]} 36. Kxh3
{[%clk 0:03:22.1]} 36... Ng5+ {[%clk 0:00:43.1]} 37. Kg2 {[%clk 0:03:21.2]}
37... Nxe6 {[%clk 0:00:42.3]} 38. Nxf5 {[%clk 0:03:20.9]} 1-0

[Event "Live Chess"]
[Site "Chess.com"]
[Date "2023.05.21"]
[Round "-"]
[White "OleksiyJr1"]
[Black "whatnot126"]
[Result "0-1"]
[WhiteElo "1034"]
[BlackElo "2066"]
[TimeControl "300"]
[EndTime "7:54:49 PDT"]
[Termination "whatnot126 won by resignation"]

1. e4 {[%clk 0:04:57]} 1... d6 {[%clk 0:04:59.4]} 2. Nf3 {[%clk 0:04:55.1]} 2...
Nf6 {[%clk 0:04:57.2]} 3. e5 {[%clk 0:04:54.9]} 3... dxe5 {[%clk 0:04:56.2]} 4.
Nxe5 {[%clk 0:04:54.8]} 4... g6 {[%clk 0:04:56]} 5. Nf3 {[%clk 0:04:54.3]} 5...
Bg7 {[%clk 0:04:55.4]} 6. Nc3 {[%clk 0:04:54]} 6... O-O {[%clk 0:04:55]} 7. d3
{[%clk 0:04:53.9]} 7... c5 {[%clk 0:04:54.3]} 8. Bg5 {[%clk 0:04:53.5]} 8... Qb6
{[%clk 0:04:52.2]} 9. Rb1 {[%clk 0:04:49.6]} 9... Bg4 {[%clk 0:04:47.3]} 10. h3
{[%clk 0:04:48.2]} 10... Bxf3 {[%clk 0:04:43.8]} 11. Qxf3 {[%clk 0:04:48.1]}
11... Nc6 {[%clk 0:04:41.9]} 12. Be2 {[%clk 0:04:44.4]} 12... Nd4 {[%clk
0:04:40.9]} 13. Qf4 {[%clk 0:04:39.4]} 13... Nxc2+ {[%clk 0:04:37.2]} 0-1

[Event "Live Chess"]
[Site "Chess.com"]
[Date "2023.05.21"]
[Round "-"]
[White "FlyingChessKestrel13"]
[Black "NatashaRegan"]
[Result "1-0"]
[WhiteElo "2050"]
[BlackElo "1710"]
[TimeControl "300"]
[EndTime "7:55:36 PDT"]
[Termination "FlyingChessKestrel13 won by resignation"]

1. e4 {[%clk 0:04:46.8]} 1... e5 {[%clk 0:04:58]} 2. Nf3 {[%clk 0:04:42.5]} 2...
Nc6 {[%clk 0:04:56.4]} 3. Bb5 {[%clk 0:04:41]} 3... Nge7 {[%clk 0:04:53.8]} 4.
O-O {[%clk 0:04:39.5]} 4... g6 {[%clk 0:04:51.4]} 5. c3 {[%clk 0:04:24.4]} 5...
a6 {[%clk 0:04:48]} 6. Ba4 {[%clk 0:04:22.7]} 6... Bg7 {[%clk 0:04:44.3]} 7. Bb3
{[%clk 0:04:21.5]} 7... d5 {[%clk 0:04:34.7]} 8. exd5 {[%clk 0:04:19.8]} 8...
Nxd5 {[%clk 0:04:33.3]} 9. d4 {[%clk 0:04:17.3]} 9... e4 {[%clk 0:04:27.5]} 10.
Nfd2 {[%clk 0:04:12.8]} 10... Bf5 {[%clk 0:04:20.2]} 11. Nxe4 {[%clk 0:04:02.2]}
11... Bxe4 {[%clk 0:04:18.1]} 12. Re1 {[%clk 0:04:01.8]} 12... O-O {[%clk
0:03:59]} 13. Rxe4 {[%clk 0:03:49.1]} 13... Nf6 {[%clk 0:03:52.8]} 14. Re3
{[%clk 0:03:45.2]} 14... Qd6 {[%clk 0:03:49.9]} 15. Nd2 {[%clk 0:03:35]} 15...
Rad8 {[%clk 0:03:45.6]} 16. Ne4 {[%clk 0:03:27.1]} 16... Nxe4 {[%clk 0:03:35.8]}
17. Rxe4 {[%clk 0:03:25.4]} 17... Kh8 {[%clk 0:03:28.7]} 18. Rh4 {[%clk
0:03:19.6]} 18... f5 {[%clk 0:03:01.6]} 19. Bh6 {[%clk 0:03:09.5]} 19... Bxh6
{[%clk 0:02:54.8]} 20. Rxh6 {[%clk 0:03:07.8]} 20... Qf4 {[%clk 0:02:53.5]} 21.
Rh3 {[%clk 0:03:05.3]} 21... Ne5 {[%clk 0:02:44.1]} 22. Qc1 {[%clk 0:02:52.7]}
22... Nd3 {[%clk 0:02:35.5]} 23. Rxd3 {[%clk 0:02:49.3]} 1-0

[Event "Live Chess"]
[Site "Chess.com"]
[Date "2023.05.21"]
[Round "-"]
[White "NotHarryV"]
[Black "SupremeTactician"]
[Result "0-1"]
[WhiteElo "1502"]
[BlackElo "2208"]
[TimeControl "300"]
[EndTime "7:55:42 PDT"]
[Termination "SupremeTactician won by resignation"]

1. d4 {[%clk 0:04:59.7]} 1... Nf6 {[%clk 0:04:59.1]} 2. c4 {[%clk 0:04:58]} 2...
e6 {[%clk 0:04:58.5]} 3. Nf3 {[%clk 0:04:56.9]} 3... Bb4+ {[%clk 0:04:56.6]} 4.
Bd2 {[%clk 0:04:55.1]} 4... a5 {[%clk 0:04:53.4]} 5. g3 {[%clk 0:04:53.8]} 5...
O-O {[%clk 0:04:49.7]} 6. Bg2 {[%clk 0:04:53.2]} 6... b6 {[%clk 0:04:48.6]} 7.
O-O {[%clk 0:04:52.6]} 7... Bb7 {[%clk 0:04:47.8]} 8. Bg5 {[%clk 0:04:38.5]}
8... h6 {[%clk 0:04:38.8]} 9. Bxf6 {[%clk 0:04:37.4]} 9... Qxf6 {[%clk
0:04:38.7]} 10. h4 {[%clk 0:04:18.7]} 10... d6 {[%clk 0:04:19.3]} 11. Qd3 {[%clk
0:04:10.9]} 11... d5 {[%clk 0:04:17.4]} 12. a3 {[%clk 0:04:04.1]} 12... Be7
{[%clk 0:04:15.6]} 13. Nc3 {[%clk 0:03:57.2]} 13... Nd7 {[%clk 0:04:11.6]} 14.
cxd5 {[%clk 0:03:54.4]} 14... exd5 {[%clk 0:04:11.5]} 15. Ne5 {[%clk 0:03:40]}
15... Nxe5 {[%clk 0:04:09.5]} 16. dxe5 {[%clk 0:03:39.4]} 16... Qxe5 {[%clk
0:04:09.2]} 17. Nxd5 {[%clk 0:03:37]} 17... Bxd5 {[%clk 0:04:07.3]} 18. Qxd5
{[%clk 0:03:32.2]} 18... Qxd5 {[%clk 0:04:06.4]} 19. Bxd5 {[%clk 0:03:31.2]}
19... Rad8 {[%clk 0:04:06.3]} 20. Bf3 {[%clk 0:03:25]} 20... Bf6 {[%clk
0:04:05.3]} 21. Rab1 {[%clk 0:03:22.6]} 21... Rd2 {[%clk 0:04:04.1]} 22. b3
{[%clk 0:03:14]} 22... Rfd8 {[%clk 0:04:01.6]} 23. a4 {[%clk 0:02:58.3]} 23...
c5 {[%clk 0:03:53.5]} 24. Rfc1 {[%clk 0:02:46.7]} 24... Bb2 {[%clk 0:03:50.1]}
25. Rc4 {[%clk 0:02:38.3]} 25... Bd4 {[%clk 0:03:38.2]} 26. Kf1 {[%clk
0:02:20.7]} 26... Be5 {[%clk 0:03:29]} 27. Ke1 {[%clk 0:02:12.6]} 27... Ra2
{[%clk 0:03:20.3]} 28. Re4 {[%clk 0:01:58.1]} 28... Bc3+ {[%clk 0:03:14.8]} 29.
Kf1 {[%clk 0:01:57.7]} 29... Kf8 {[%clk 0:03:07.7]} 30. Re3 {[%clk 0:01:47.5]}
30... Bb4 {[%clk 0:03:01.7]} 31. Rd3 {[%clk 0:01:42.9]} 31... Rxd3 {[%clk
0:03:00.3]} 32. exd3 {[%clk 0:01:42.8]} 32... Rd2 {[%clk 0:02:59.9]} 33. Be4
{[%clk 0:01:42.1]} 33... g6 {[%clk 0:02:58.8]} 34. g4 {[%clk 0:01:34.5]} 34...
Ke7 {[%clk 0:02:50.7]} 35. Kg2 {[%clk 0:01:33.3]} 35... Ke6 {[%clk 0:02:45.7]}
36. Re1 {[%clk 0:01:12.4]} 36... Kd6 {[%clk 0:02:37.3]} 37. Kf3 {[%clk
0:00:59.5]} 37... Rb2 {[%clk 0:02:33.4]} 38. Re3 {[%clk 0:00:49.2]} 38... Rxb3
{[%clk 0:02:30.2]} 39. Kf4 {[%clk 0:00:46.5]} 39... Bd2 {[%clk 0:02:29]} 0-1

[Event "Live Chess"]
[Site "Chess.com"]
[Date "2023.05.21"]
[Round "-"]
[White "WilliamofOrange16th"]
[Black "chessfiction"]
[Result "0-1"]
[WhiteElo "1865"]
[BlackElo "2297"]
[TimeControl "300"]
[EndTime "7:55:43 PDT"]
[Termination "chessfiction won by resignation"]

1. e4 {[%clk 0:04:57.6]} 1... d5 {[%clk 0:04:58.6]} 2. exd5 {[%clk 0:04:56.4]}
2... c6 {[%clk 0:04:58.1]} 3. dxc6 {[%clk 0:04:55.1]} 3... e5 {[%clk 0:04:57.1]}
4. cxb7 {[%clk 0:04:52.7]} 4... Bxb7 {[%clk 0:04:57]} 5. d3 {[%clk 0:04:50.8]}
5... Bc5 {[%clk 0:04:56.4]} 6. Nf3 {[%clk 0:04:49.9]} 6... Qb6 {[%clk
0:04:56.1]} 7. Qe2 {[%clk 0:04:45.7]} 7... Nc6 {[%clk 0:04:54.7]} 8. Nc3 {[%clk
0:04:41.7]} 8... O-O-O {[%clk 0:04:54.1]} 9. Ne4 {[%clk 0:04:37.5]} 9... Nf6
{[%clk 0:04:50]} 10. Nxc5 {[%clk 0:04:36.1]} 10... Qxc5 {[%clk 0:04:49.4]} 11.
c3 {[%clk 0:04:32.1]} 11... e4 {[%clk 0:04:45.9]} 12. dxe4 {[%clk 0:04:30.3]}
12... Nxe4 {[%clk 0:04:44.5]} 13. Be3 {[%clk 0:04:29.5]} 13... Qa5 {[%clk
0:04:42.3]} 14. Nd4 {[%clk 0:04:25.3]} 14... Nxc3 {[%clk 0:04:38.5]} 15. Bd2
{[%clk 0:04:20.4]} 15... Nxe2 {[%clk 0:04:36.3]} 16. Bxa5 {[%clk 0:04:19.3]}
16... Nexd4 {[%clk 0:04:33]} 0-1

[Event "Live Chess"]
[Site "Chess.com"]
[Date "2023.05.21"]
[Round "-"]
[White "Bot_Boy"]
[Black "defenderalist"]
[Result "0-1"]
[WhiteElo "332"]
[BlackElo "1629"]
[TimeControl "300"]
[EndTime "7:56:00 PDT"]
[Termination "defenderalist won on time"]

1. e4 {[%clk 0:04:56.1]} 1... c5 {[%clk 0:04:55.2]} 2. Nf3 {[%clk 0:04:52.8]}
2... Nc6 {[%clk 0:04:54.2]} 3. Bc4 {[%clk 0:04:44.7]} 3... e6 {[%clk 0:04:53.1]}
4. Nc3 {[%clk 0:04:32.7]} 4... Nf6 {[%clk 0:04:50.1]} 5. d3 {[%clk 0:04:30.1]}
5... d6 {[%clk 0:04:47.6]} 6. Bg5 {[%clk 0:04:21.2]} 6... Be7 {[%clk 0:04:46.1]}
7. Bb3 {[%clk 0:03:50.4]} 7... a6 {[%clk 0:04:42.8]} 8. a4 {[%clk 0:03:41.9]}
8... h6 {[%clk 0:04:41.1]} 9. Bxf6 {[%clk 0:03:30.6]} 9... Bxf6 {[%clk 0:04:40]}
10. h4 {[%clk 0:03:16.3]} 10... e5 {[%clk 0:04:24.2]} 11. Qd2 {[%clk 0:02:52]}
11... Bg4 {[%clk 0:04:22.3]} 12. h5 {[%clk 0:02:28.9]} 12... Bxf3 {[%clk
0:04:14.1]} 13. gxf3 {[%clk 0:02:22.9]} 13... Nd4 {[%clk 0:04:12.3]} 14. Rh3
{[%clk 0:01:33.9]} 14... Bg5 {[%clk 0:04:04.8]} 15. Qd1 {[%clk 0:01:27.9]} 15...
Nxb3 {[%clk 0:03:59.9]} 16. cxb3 {[%clk 0:01:26.1]} 16... O-O {[%clk 0:03:52.2]}
17. a5 {[%clk 0:01:09]} 17... f5 {[%clk 0:03:50.2]} 18. Nd5 {[%clk 0:00:56.3]}
18... fxe4 {[%clk 0:03:44.8]} 19. dxe4 {[%clk 0:00:49]} 19... b5 {[%clk
0:03:42.2]} 20. Nb6 {[%clk 0:00:31.2]} 20... Rb8 {[%clk 0:03:36.3]} 21. Qd5+
{[%clk 0:00:23.8]} 21... Kh8 {[%clk 0:03:32.2]} 22. Rd1 {[%clk 0:00:14.8]} 22...
Qf6 {[%clk 0:03:29.7]} 23. Qxd6 {[%clk 0:00:07.4]} 23... Qxd6 {[%clk 0:03:14]}
24. Rxd6 {[%clk 0:00:04.3]} 24... Rbd8 {[%clk 0:03:09.4]} 25. Nd7 {[%clk
0:00:02.6]} 25... Rf7 {[%clk 0:03:06.1]} 0-1

[Event "Live Chess"]
[Site "Chess.com"]
[Date "2023.05.21"]
[Round "-"]
[White "domrobson"]
[Black "Mugzwang"]
[Result "1-0"]
[WhiteElo "1758"]
[BlackElo "1458"]
[TimeControl "300"]
[EndTime "7:56:03 PDT"]
[Termination "domrobson won by resignation"]

1. d4 {[%clk 0:04:58.3]} 1... d5 {[%clk 0:04:58.2]} 2. c4 {[%clk 0:04:57.8]}
2... dxc4 {[%clk 0:04:57]} 3. Nf3 {[%clk 0:04:57.2]} 3... Nf6 {[%clk 0:04:55.4]}
4. e3 {[%clk 0:04:56.7]} 4... Bg4 {[%clk 0:04:53.6]} 5. Bxc4 {[%clk 0:04:53.5]}
5... e6 {[%clk 0:04:46.9]} 6. Nbd2 {[%clk 0:04:41.3]} 6... Bb4 {[%clk
0:04:41.5]} 7. O-O {[%clk 0:04:39.3]} 7... O-O {[%clk 0:04:37.5]} 8. Qb3 {[%clk
0:04:36.5]} 8... Nc6 {[%clk 0:04:26.1]} 9. Ne5 {[%clk 0:04:31.7]} 9... Bxd2
{[%clk 0:04:01.8]} 10. Nxg4 {[%clk 0:04:23.9]} 10... Nxg4 {[%clk 0:03:56.9]} 11.
Bxd2 {[%clk 0:04:13.4]} 11... Qd6 {[%clk 0:03:23.9]} 12. g3 {[%clk 0:03:54.4]}
12... b6 {[%clk 0:03:18.6]} 13. Bb5 {[%clk 0:03:49.2]} 13... Nf6 {[%clk
0:02:43.4]} 14. Rac1 {[%clk 0:03:37.1]} 14... Na5 {[%clk 0:02:37.6]} 15. Qa4
{[%clk 0:03:27.7]} 15... Rab8 {[%clk 0:02:18.3]} 16. Bb4 {[%clk 0:03:24]} 16...
Qd8 {[%clk 0:02:09.5]} 17. Bxf8 {[%clk 0:03:19.4]} 17... Kxf8 {[%clk 0:02:07.1]}
18. b4 {[%clk 0:03:15.4]} 18... Nb7 {[%clk 0:01:58.8]} 19. Qxa7 {[%clk
0:03:13.3]} 19... Nd6 {[%clk 0:01:55.6]} 20. Bc6 {[%clk 0:03:05.8]} 20... Nfe4
{[%clk 0:01:48.2]} 21. Bxe4 {[%clk 0:03:02.4]} 21... Nxe4 {[%clk 0:01:46.8]} 22.
Rxc7 {[%clk 0:03:01.1]} 22... Nd6 {[%clk 0:01:20.7]} 23. Rfc1 {[%clk 0:02:36.2]}
23... Qe8 {[%clk 0:01:07.2]} 24. e4 {[%clk 0:02:27.8]} 24... Nb5 {[%clk
0:01:05.7]} 25. Qxb8 {[%clk 0:02:22.9]} 25... Qxb8 {[%clk 0:01:00.5]} 26. Rc8+
{[%clk 0:02:21.8]} 26... Qxc8 {[%clk 0:00:59.1]} 27. Rxc8+ {[%clk 0:02:20.6]}
27... Ke7 {[%clk 0:00:58.2]} 28. d5 {[%clk 0:02:18.2]} 28... exd5 {[%clk
0:00:56.8]} 29. exd5 {[%clk 0:02:16.7]} 29... Nc3 {[%clk 0:00:55.9]} 30. Rxc3
{[%clk 0:02:14]} 1-0